lending/lending_fUSD_20250224
["ID","MTS","AMOUNT","RATE_DAILY","PERIOD"]
[354261047,1740370265907,-777.63,0.00017014,2]
[354261048,1740370265918,-150.62,0.0001702,2]
[354261049,1740370265928,-173.949017,0.00017033,2]
[354261050,1740370265937,-175.004175,0.00017033,2]
[354261051,1740370265947,-269.31005074,0.00017051,2]
[354261052,1740370265956,-500.0,0.00017073,2]
[354261053,1740370265966,-500.0,0.00017073,2]
[354261054,1740370265976,-500.0,0.00017073,2]
[354261055,1740370265986,-159.85778466,0.00017073,2]
[354261056,1740370265995,-151.86489704,0.00017073,2]
[354261057,1740370266004,-324.82669322,0.00017073,2]
[354261058,1740370266013,-518.26885641,0.00017073,2]
[354261059,1740370266023,-500.0,0.00017073,2]
[354261060,1740370266032,-161.68530438,0.00017073,2]
[354261061,1740370266042,-207.42710832,0.00017073,2]
[354261062,1740370266051,-500.0,0.00017073,2]
[354261063,1740370266060,-500.0,0.00017073,2]
[354261064,1740370266072,-500.0,0.00017073,2]
[354261065,1740370266081,-500.0,0.00017073,2]
[354261066,1740370266090,-500.44700357,0.00017073,2]
[354261067,1740370266099,-500.0,0.00017073,2]
[354261068,1740370266109,-358.67619228,0.00017073,2]
[354261069,1740370266118,-800.80760445,0.00017078,2]
[354261070,1740370266126,-506.08,0.00017089,7]
[354261071,1740370266136,-506.08,0.00017089,7]
[354261072,1740370266145,-500.0,0.00017094,2]
[354261073,1740370266156,-500.0,0.00017094,2]
[354261074,1740370266167,-708.07,0.00017094,2]
[354261075,1740370266177,-1413.76,0.00017094,2]
[354261076,1740370266187,-931.01,0.00017095,2]
[354261077,1740370266196,-500.0,0.00017095,2]
[354261078,1740370266205,-538.99395,0.00017095,2]
[354261079,1740370266214,-586.522083,0.00017095,2]
[354261080,1740370266223,-654.56,0.00017095,2]
[354261081,1740370266232,-561.51,0.00017095,2]
[354261082,1740370266241,-500.0,0.00017095,2]
[354261083,1740370266250,-500.0,0.00017095,2]
[354261084,1740370266259,-500.0,0.00017095,2]
[354261085,1740370266268,-632.37,0.00017095,2]
[354261086,1740370266277,-500.0,0.00017095,2]
[354261087,1740370266286,-500.0,0.00017095,2]
[354261088,1740370266295,-500.0,0.00017095,2]
[354261089,1740370266304,-500.0,0.00017095,2]
[354261090,1740370266313,-500.0,0.00017095,2]
[354261091,1740370266323,-536.73,0.00017095,2]
[354261092,1740370266331,-500.0,0.00017095,2]
[354261093,1740370266340,-500.0,0.00017095,2]
[354261094,1740370266349,-500.0,0.00017095,2]
[354261095,1740370266359,-565.79,0.00017095,2]
[354261096,1740370266368,-585.43,0.00017095,2]
[354261097,1740370266377,-674.94,0.00017095,2]
[354261098,1740370266386,-500.0,0.00017095,2]
[354261099,1740370266395,-500.0,0.00017095,2]
[354261100,1740370266404,-745.66,0.00017095,2]
[354261101,1740370266414,-699.72,0.00017095,2]
[354261102,1740370266423,-500.0,0.00017095,2]
[354261103,1740370266432,-1904.22,0.00017095,2]
[354261104,1740370266442,-526.35,0.00017095,2]
[354261105,1740370266452,-500.0,0.00017095,2]
[354261106,1740370266461,-1002.13,0.00017095,2]
[354261107,1740370266470,-500.0,0.00017095,2]
[354261108,1740370266480,-1134.15,0.00017095,2]
[354261109,1740370266490,-389.57221777,0.00017095,2]
[354261110,1740370266500,-500.0,0.00017095,2]
[354261111,1740370266509,-571.09,0.00017095,2]
[354261112,1740370266518,-565.68810563,0.00017095,2]
[354261113,1740370266527,-553.86,0.00017095,2]
[354261114,1740370266536,-1052.61,0.00017095,2]
[354261115,1740370266545,-850.74,0.00017095,2]
[354261116,1740370266554,-1131.97,0.00017095,2]
[354261117,1740370266563,-500.0,0.00017095,2]
[354261118,1740370266572,-899.17,0.00017095,2]
[354261119,1740370266582,-500.0,0.00017095,2]
[354261120,1740370266591,-787.33,0.00017095,2]
[354261121,1740370266601,-374.0918309,0.00017095,2]
[354261122,1740370266610,-500.0,0.00017095,2]
[354261123,1740370266619,-1272.39,0.00017095,2]
[354261124,1740370266628,-500.0,0.00017095,2]
[354261125,1740370266638,-769.41,0.00017095,2]
[354261126,1740370266647,-891.59,0.00017095,2]
[354261127,1740370266656,-500.0,0.00017095,2]
[354261128,1740370266666,-746.3,0.00017095,2]
[354261129,1740370266675,-512.65,0.00017095,2]
[354261130,1740370266684,-1139.12,0.00017095,2]
[354261131,1740370266693,-629.92,0.00017095,2]
[354261132,1740370266702,-1166.53,0.00017095,2]
[354261133,1740370266711,-500.0,0.00017095,2]
[354261134,1740370266719,-500.0,0.00017095,2]
[354261135,1740370266727,-500.0,0.00017095,2]
[354261136,1740370266737,-654.42,0.00017095,2]
[354261137,1740370266747,-620.82,0.00017095,2]
[354261138,1740370266811,-500.0,0.00017095,2]
[354261139,1740370266820,-682.77,0.00017095,2]
[354261140,1740370266829,-589.28,0.00017095,2]
[354261141,1740370266838,-500.0,0.00017095,2]
[354261142,1740370266847,-677.74,0.00017095,2]
[354261143,1740370266856,-500.0,0.00017095,2]
[354261144,1740370266865,-500.0,0.00017095,2]
[354261145,1740370266874,-222.00827731,0.00017095,2]
[354261146,1740370266882,-500.0,0.00017095,2]
[354261147,1740370266892,-500.0,0.00017095,2]
[354261148,1740370266901,-515.59,0.00017095,2]
[354261149,1740370266910,-500.0,0.00017095,2]
[354261150,1740370266920,-500.0,0.00017095,2]
[354261151,1740370266929,-973.07,0.00017095,2]
[354261152,1740370266937,-581.39710822,0.00017095,2]
[354261153,1740370266946,-531.07,0.00017095,2]
[354261154,1740370266955,-614.59,0.00017095,2]
[354261155,1740370266964,-673.96,0.00017095,2]
[354261156,1740370266972,-500.0,0.00017095,2]
[354261157,1740370266981,-545.54,0.00017095,2]
[354261158,1740370266990,-188.07215023,0.00017095,2]
[354261159,1740370266999,-500.0,0.00017095,2]
[354261160,1740370267008,-500.0,0.00017095,2]
[354261161,1740370267017,-546.89,0.00017095,2]
[354261162,1740370267026,-583.18,0.00017095,2]
[354261163,1740370267035,-500.0,0.00017095,2]
[354261164,1740370267043,-882.41,0.00017095,2]
[354261165,1740370267052,-500.0,0.00017095,2]
[354261166,1740370267061,-502.84,0.00017095,2]
[354261167,1740370267071,-500.0,0.00017095,2]
[354261168,1740370267080,-576.49,0.00017095,2]
[354261169,1740370267089,-500.0,0.00017095,2]
[354261170,1740370267101,-500.0,0.00017095,2]
[354261171,1740370267110,-500.0,0.00017095,2]
[354261172,1740370267119,-768.2,0.00017095,2]
[354261173,1740370267128,-500.0,0.00017095,2]
[354261174,1740370267137,-556.67,0.00017095,2]
[354261175,1740370267148,-500.0,0.00017095,2]
[354261176,1740370267158,-781.2,0.00017095,2]
[354261177,1740370267168,-992.75,0.00017095,2]
[354261178,1740370267177,-845.58,0.00017095,2]
[354261179,1740370267186,-822.7,0.00017095,2]
[354261180,1740370267195,-519.67,0.00017095,2]
[354261181,1740370267205,-506.17,0.00017095,2]
[354261182,1740370267215,-1117.0,0.00017095,2]
[354261183,1740370267225,-500.0,0.00017095,2]
[354261184,1740370267234,-611.16,0.00017095,2]
[354261185,1740370267243,-500.0,0.00017095,2]
[354261186,1740370267252,-500.0,0.00017095,2]
[354261187,1740370267262,-500.0,0.00017095,2]
[354261188,1740370267271,-1226.43,0.00017095,2]
[354261189,1740370267280,-890.12,0.00017095,2]
[354261190,1740370267289,-887.69,0.00017095,2]
[354261191,1740370267298,-500.0,0.00017095,2]
[354261192,1740370267306,-690.76,0.00017095,2]
[354261193,1740370267316,-689.31,0.00017095,2]
[354261194,1740370267325,-595.43,0.00017095,2]
[354261195,1740370267334,-500.0,0.00017095,2]
[354261196,1740370267343,-500.0,0.00017095,2]
[354261197,1740370267352,-929.89,0.00017095,2]
[354261198,1740370267361,-500.0,0.00017095,2]
[354261199,1740370267371,-688.58,0.00017095,2]
[354261200,1740370267380,-500.0,0.00017095,2]
[354261201,1740370267389,-500.0,0.00017095,2]
[354261202,1740370267398,-518.85,0.00017095,2]
[354261203,1740370267407,-500.0,0.00017095,2]
[354261204,1740370267418,-783.77,0.00017095,2]
[354261205,1740370267427,-627.66,0.00017095,2]
[354261206,1740370267436,-500.0,0.00017095,2]
[354261207,1740370267445,-1124.15,0.00017095,2]
[354261208,1740370267454,-500.0,0.00017095,2]
[354261209,1740370267464,-500.0,0.00017095,2]
[354261210,1740370267473,-500.0,0.00017095,2]
[354261211,1740370267482,-500.0,0.00017095,2]
[354261212,1740370267491,-648.07,0.00017095,2]
[354261213,1740370267500,-742.83,0.00017095,2]
[354261214,1740370267509,-544.47,0.00017095,2]
[354261215,1740370267519,-538.11,0.00017095,2]
[354261216,1740370267527,-606.9,0.00017095,2]
[354261217,1740370267536,-761.19,0.00017095,2]
[354261218,1740370267545,-500.0,0.00017095,2]
[354261219,1740370267554,-942.27,0.00017095,2]
[354261220,1740370267563,-500.0,0.00017095,2]
[354261221,1740370267573,-1119.02,0.00017095,2]
[354261222,1740370267582,-719.34,0.00017095,2]
[354261223,1740370267590,-604.42,0.00017095,2]
[354261224,1740370267599,-268.33563587,0.00017095,2]
[354261225,1740370267608,-500.0,0.00017095,2]
[354261226,1740370267617,-531.87,0.00017095,2]
[354261227,1740370267626,-985.74,0.00017095,2]
[354261228,1740370267635,-955.59,0.00017095,2]
[354261229,1740370267644,-506.69,0.00017095,2]
[354261230,1740370267653,-1299.46,0.00017095,2]
[354261231,1740370267662,-500.0,0.00017095,2]
[354261232,1740370267671,-529.88,0.00017095,2]
[354261233,1740370267680,-500.0,0.00017095,2]
[354261234,1740370267689,-603.32,0.00017095,2]
[354261235,1740370267698,-2279.4,0.00017095,2]
[354261236,1740370267707,-500.0,0.00017095,2]
[354261237,1740370267715,-1087.58,0.00017095,2]
[354261238,1740370267724,-1355.43,0.00017095,2]
[354261239,1740370267733,-1419.3,0.00017095,2]
[354261240,1740370267742,-1326.58,0.00017095,2]
[354261241,1740370267751,-990.6,0.00017095,2]
[354261242,1740370267759,-518.6,0.00017095,2]
[354261243,1740370267768,-1927.97,0.00017095,2]
[354261244,1740370267777,-1147.32,0.00017095,2]
[354261245,1740370267786,-1418.58,0.00017095,2]
[354261246,1740370267795,-500.0,0.00017095,2]
[354261247,1740370267804,-881.04,0.00017095,2]
[354261248,1740370267814,-500.0,0.00017095,2]
[354261249,1740370267823,-308.66136376,0.00017095,2]
[354261250,1740370267832,-2363.12,0.00017095,2]
[354261251,1740370267841,-2242.46,0.00017095,2]
[354261252,1740370267850,-500.0,0.00017095,2]
[354261253,1740370267859,-500.0,0.00017095,2]
[354261254,1740370267869,-500.0,0.00017095,2]
[354261255,1740370267878,-1062.87,0.00017095,2]
[354261256,1740370267887,-618.22,0.00017095,2]
[354261257,1740370267896,-2156.86,0.00017095,2]
[354261258,1740370267905,-1442.62,0.00017095,2]
[354261259,1740370267914,-834.42,0.00017095,2]
[354261260,1740370267923,-2002.34,0.00017095,2]
[354261261,1740370267932,-693.2,0.00017095,2]
[354261262,1740370267942,-1463.93,0.00017095,2]
[354261263,1740370267951,-1507.75,0.00017095,2]
[354261264,1740370267959,-1055.17,0.00017095,2]
[354261265,1740370267968,-590.46,0.00017095,2]
[354261266,1740370267978,-731.62,0.00017095,2]
[354261267,1740370267987,-1951.74,0.00017095,2]
[354261268,1740370267996,-1780.85,0.00017095,2]
[354261269,1740370268005,-500.0,0.00017095,2]
[354261270,1740370268014,-500.0,0.00017095,2]
[354261271,1740370268023,-11267.85,0.00017095,2]
[354261272,1740370268032,-582.35,0.00017095,2]
[354261273,1740370268041,-822.47,0.00017095,2]
[354261274,1740370268050,-773.02,0.00017095,2]
[354261275,1740370268059,-2054.61,0.00017095,2]
[354261276,1740370268069,-1628.62,0.00017095,2]
[354261277,1740370268080,-599.87,0.00017095,2]
[354261278,1740370268090,-3117.91,0.00017095,2]
[354261279,1740370268098,-4818.73,0.00017095,2]
[354261280,1740370268108,-655.46,0.00017095,2]
[354261281,1740370268117,-5552.05,0.00017095,2]
[354261282,1740370268127,-500.0,0.00017095,2]
[354261283,1740370268136,-1407.53,0.00017095,2]
[354261284,1740370268146,-1303.65,0.00017095,2]
[354261285,1740370268155,-2523.47,0.00017095,2]
[354261286,1740370268167,-1791.53,0.00017095,2]
[354261287,1740370268176,-1935.81,0.00017095,2]
[354261288,1740370268186,-1194.26,0.00017095,2]
[354261289,1740370268195,-151.0,0.00017095,2]
[354261290,1740370268204,-445.283686,0.00017095,2]
[354261291,1740370268213,-3040.22,0.00017095,2]
[354261292,1740370268222,-555.36,0.00017095,2]
[354261293,1740370268231,-2447.95,0.00017095,2]
[354261294,1740370268241,-778.73,0.00017095,2]
[354261295,1740370268250,-2805.33,0.00017095,2]
[354261296,1740370268259,-445.283686,0.00017095,2]
[354261297,1740370268268,-1830.49,0.00017095,2]
[354261298,1740370268278,-1963.82,0.00017095,2]
[354261299,1740370268287,-1465.42,0.00017095,2]
[354261300,1740370268296,-3178.28,0.00017095,2]
[354261301,1740370268305,-3050.1,0.00017095,2]
[354261302,1740370268315,-1928.5,0.00017095,2]
[354261303,1740370268324,-1941.07,0.00017095,2]
[354261304,1740370268333,-748.66,0.00017095,2]
[354261305,1740370268342,-500.0,0.00017095,2]
[354261306,1740370268351,-1478.69,0.00017095,2]
[354261307,1740370268360,-2173.14,0.00017095,2]
[354261308,1740370268370,-3736.47,0.00017095,2]
[354261309,1740370268378,-1220.36,0.00017095,2]
[354261310,1740370268388,-500.0,0.00017095,2]
[354261311,1740370268397,-1666.17,0.00017095,2]
[354261312,1740370268406,-2977.97,0.00017095,2]
[354261313,1740370268416,-1017.67,0.00017095,2]
[354261314,1740370268426,-1640.63,0.00017095,2]
[354261315,1740370268435,-6338.02,0.00017095,2]
[354261316,1740370268444,-2867.15,0.00017095,2]
[354261317,1740370268454,-841.89,0.00017095,2]
[354261318,1740370268463,-500.0,0.00017095,2]
[354261319,1740370268473,-2143.08,0.00017095,2]
[354261320,1740370268483,-500.0,0.00017095,2]
[354261321,1740370268492,-2766.52,0.00017095,2]
[354261322,1740370268501,-931.52,0.00017095,2]
[354261323,1740370268511,-500.0,0.00017095,2]
[354261324,1740370268520,-549.15,0.00017095,2]
[354261325,1740370268530,-500.0,0.00017095,2]
[354261326,1740370268539,-2546.08,0.00017095,2]
[354261327,1740370268548,-500.0,0.00017095,2]
[354261328,1740370268557,-1331.74,0.00017095,2]
[354261329,1740370268566,-1142.48,0.00017095,2]
[354261330,1740370268575,-1700.65,0.00017095,2]
[354261331,1740370268584,-1357.58,0.00017095,2]
[354261332,1740370268594,-500.0,0.00017095,2]
[354261333,1740370268603,-2422.92,0.00017095,2]
[354261334,1740370268612,-3135.47,0.00017095,2]
[354261335,1740370268622,-450.30294819,0.00017095,2]
[354261336,1740370268631,-1200.83,0.00017095,2]
[354261337,1740370268640,-1256.88,0.00017095,2]
[354261338,1740370268649,-985.51,0.00017095,2]
[354261339,1740370268659,-2703.34,0.00017095,2]
[354261340,1740370268670,-1243.49,0.00017095,2]
[354261341,1740370268679,-500.0,0.00017095,2]
[354261342,1740370268689,-2863.31,0.00017095,2]
[354261343,1740370268698,-2741.9,0.00017095,2]
[354261344,1740370268708,-3475.77,0.00017095,2]
[354261345,1740370268717,-807.12,0.00017095,2]
[354261346,1740370268726,-2094.5,0.00017095,2]
[354261347,1740370268735,-1429.41,0.00017095,2]
[354261348,1740370268744,-656.42,0.00017095,2]
[354261349,1740370268753,-1109.03,0.00017095,2]
[354261350,1740370268762,-3155.01,0.00017095,2]
[354261351,1740370268770,-1836.26,0.00017095,2]
[354261352,1740370268779,-2861.82,0.00017095,2]
[354261353,1740370268788,-1222.45,0.00017095,2]
[354261354,1740370268797,-1059.77,0.00017095,2]
[354261355,1740370268806,-1881.25,0.00017095,2]
[354261356,1740370268815,-2516.19,0.00017095,2]
[354261357,1740370268824,-1026.41,0.00017095,2]
[354261358,1740370268833,-500.0,0.00017095,2]
[354261359,1740370268842,-1040.13,0.00017095,2]
[354261360,1740370268850,-1687.26,0.00017095,2]
[354261361,1740370268859,-990.37,0.00017095,2]
[354261362,1740370268868,-1952.17,0.00017095,2]
[354261363,1740370268877,-3199.22,0.00017095,2]
[354261364,1740370268886,-1386.4,0.00017095,2]
[354261365,1740370268895,-1126.95,0.00017095,2]
[354261366,1740370268904,-2480.34,0.00017095,2]
[354261367,1740370268915,-2631.9,0.00017095,2]
[354261368,1740370268925,-4039.48,0.00017095,2]
[354261369,1740370268934,-572.26,0.00017095,2]
[354261370,1740370268943,-3534.61,0.00017095,2]
[354261371,1740370268952,-500.0,0.00017095,2]
[354261372,1740370268961,-3523.63,0.00017095,2]
[354261373,1740370268970,-1787.16,0.00017095,2]
[354261374,1740370268980,-1888.6,0.00017095,2]
[354261375,1740370268989,-9640.15,0.00017095,2]
[354261376,1740370268998,-500.0,0.00017095,2]
[354261377,1740370269008,-2409.95,0.00017095,2]
[354261378,1740370269017,-2352.02,0.00017095,2]
[354261379,1740370269026,-500.0,0.00017095,2]
[354261380,1740370269035,-1485.16,0.00017095,2]
[354261381,1740370269044,-811.15,0.00017095,2]
[354261382,1740370269054,-500.0,0.00017095,2]
[354261383,1740370269063,-583.37,0.00017095,2]
[354261384,1740370269077,-2357.84,0.00017095,2]
[354261385,1740370269085,-739.0,0.00017095,2]
[354261386,1740370269095,-4243.19,0.00017095,2]
[354261387,1740370269104,-709.38,0.00017095,2]
[354261388,1740370269114,-1367.15,0.00017095,2]
[354261389,1740370269123,-3442.95,0.00017095,2]
[354261390,1740370269133,-2307.0,0.00017095,2]
[354261391,1740370269142,-853.06,0.00017095,2]
[354261392,1740370269152,-500.0,0.00017095,2]
[354261393,1740370269167,-2987.0,0.00017098,14]
[354261394,1740370269177,-204.0,0.0001715,2]
[354261395,1740370269186,-1339.410867,0.00017166,2]
[354261396,1740370269196,-1363.870212,0.00017166,2]
[354261397,1740370269206,-1214.0079088,0.00017166,2]
[354261398,1740370269216,-441.19773207,0.00017175,2]
[354261399,1740370269226,-500.0,0.00017177,2]
[354261400,1740370269236,-708.07,0.00017177,2]
[354261401,1740370269248,-708.07,0.00017177,2]
[354261402,1740370269258,-931.01,0.00017178,2]
[354261403,1740370269267,-500.0,0.00017178,2]
[354261404,1740370269277,-538.99395,0.00017178,2]
[354261405,1740370269287,-586.522083,0.00017178,2]
[354261406,1740370269296,-184.164569,0.00017178,2]
[354261407,1740370269305,-654.56,0.00017178,2]
[354261408,1740370269314,-561.51,0.00017178,2]
[354261409,1740370269324,-500.0,0.00017178,2]
[354261410,1740370269333,-500.0,0.00017178,2]
[354261411,1740370269342,-500.0,0.00017178,2]
[354261412,1740370269351,-632.37,0.00017178,2]
[354261413,1740370269360,-500.0,0.00017178,2]
[354261414,1740370269369,-500.0,0.00017178,2]
[354261415,1740370269378,-500.0,0.00017178,2]
[354261416,1740370269387,-500.0,0.00017178,2]
[354261417,1740370269397,-500.0,0.00017178,2]
[354261418,1740370269406,-536.73,0.00017178,2]
[354261419,1740370269419,-500.0,0.00017178,2]
[354261420,1740370269428,-500.0,0.00017178,2]
[354261421,1740370269437,-500.0,0.00017178,2]
[354261422,1740370269447,-565.79,0.00017178,2]
[354261423,1740370269456,-585.43,0.00017178,2]
[354261424,1740370269465,-674.94,0.00017178,2]
[354261425,1740370269474,-213.94151878,0.00017178,2]
[354261426,1740370269483,-500.0,0.00017178,2]
[354261427,1740370269492,-745.66,0.00017178,2]
[354261428,1740370269501,-699.72,0.00017178,2]
[354261429,1740370269510,-500.0,0.00017178,2]
[354261430,1740370269519,-1904.22,0.00017178,2]
[354261431,1740370269528,-526.35,0.00017178,2]
[354261432,1740370269537,-500.0,0.00017178,2]
[354261433,1740370269546,-1002.13,0.00017178,2]
[354261434,1740370269555,-1134.15,0.00017178,2]
[354261435,1740370269565,-500.0,0.00017178,2]
[354261436,1740370269574,-571.09,0.00017178,2]
[354261437,1740370269583,-553.86,0.00017178,2]
[354261438,1740370269592,-1052.61,0.00017178,2]
[354261439,1740370269601,-850.74,0.00017178,2]
[354261440,1740370269610,-1131.97,0.00017178,2]
[354261441,1740370269619,-500.0,0.00017178,2]
[354261442,1740370269628,-899.17,0.00017178,2]
[354261443,1740370269637,-500.0,0.00017178,2]
[354261444,1740370269646,-787.33,0.00017178,2]
[354261445,1740370269655,-500.0,0.00017178,2]
[354261446,1740370269665,-1272.39,0.00017178,2]
[354261447,1740370269674,-500.0,0.00017178,2]
[354261448,1740370269683,-769.41,0.00017178,2]
[354261449,1740370269692,-891.59,0.00017178,2]
[354261450,1740370269701,-500.0,0.00017178,2]
[354261451,1740370269710,-746.3,0.00017178,2]
[354261452,1740370269718,-512.65,0.00017178,2]
[354261453,1740370269728,-1139.12,0.00017178,2]
[354261454,1740370269737,-629.92,0.00017178,2]
[354261455,1740370269746,-1166.53,0.00017178,2]
[354261456,1740370269755,-500.0,0.00017178,2]
[354261457,1740370269764,-500.0,0.00017178,2]
[354261458,1740370269773,-500.0,0.00017178,2]
[354261459,1740370269782,-654.42,0.00017178,2]
[354261460,1740370269792,-620.82,0.00017178,2]
[354261461,1740370269801,-500.0,0.00017178,2]
[354261462,1740370269811,-682.77,0.00017178,2]
[354261463,1740370269820,-589.28,0.00017178,2]
[354261464,1740370269829,-500.0,0.00017178,2]
[354261465,1740370269839,-500.0,0.00017178,2]
[354261466,1740370269849,-677.74,0.00017178,2]
[354261467,1740370269859,-500.0,0.00017178,2]
[354261468,1740370269868,-500.0,0.00017178,2]
[354261469,1740370269878,-500.0,0.00017178,2]
[354261470,1740370269888,-515.59,0.00017178,2]
[354261471,1740370269898,-500.0,0.00017178,2]
[354261472,1740370269908,-500.0,0.00017178,2]
[354261473,1740370269920,-973.07,0.00017178,2]
[354261474,1740370269931,-531.07,0.00017178,2]
[354261475,1740370269941,-614.59,0.00017178,2]
[354261476,1740370269951,-673.96,0.00017178,2]
[354261477,1740370269961,-500.0,0.00017178,2]
[354261478,1740370269972,-545.54,0.00017178,2]
[354261479,1740370269982,-500.0,0.00017178,2]
[354261480,1740370269992,-500.0,0.00017178,2]
[354261481,1740370270004,-546.89,0.00017178,2]
[354261482,1740370270014,-583.18,0.00017178,2]
[354261483,1740370270025,-500.0,0.00017178,2]
[354261484,1740370270034,-882.41,0.00017178,2]
[354261485,1740370270044,-500.0,0.00017178,2]
[354261486,1740370270054,-502.84,0.00017178,2]
[354261487,1740370270064,-500.0,0.00017178,2]
[354261488,1740370270077,-576.49,0.00017178,2]
[354261489,1740370270086,-500.0,0.00017178,2]
[354261490,1740370270096,-500.0,0.00017178,2]
[354261491,1740370270105,-768.2,0.00017178,2]
[354261492,1740370270115,-500.0,0.00017178,2]
[354261493,1740370270127,-556.67,0.00017178,2]
[354261494,1740370270137,-500.0,0.00017178,2]
[354261495,1740370270146,-781.2,0.00017178,2]
[354261496,1740370270160,-992.75,0.00017178,2]
[354261497,1740370270174,-845.58,0.00017178,2]
[354261498,1740370270183,-822.7,0.00017178,2]
[354261499,1740370270193,-519.67,0.00017178,2]
[354261500,1740370270205,-506.17,0.00017178,2]
[354261501,1740370270215,-1117.0,0.00017178,2]
[354261502,1740370270225,-500.0,0.00017178,2]
[354261503,1740370270234,-611.16,0.00017178,2]
[354261504,1740370270244,-500.0,0.00017178,2]
[354261505,1740370270253,-500.0,0.00017178,2]
[354261506,1740370270263,-500.0,0.00017178,2]
[354261507,1740370270272,-1226.43,0.00017178,2]
[354261508,1740370270282,-890.12,0.00017178,2]
[354261509,1740370270291,-887.69,0.00017178,2]
[354261510,1740370270301,-500.0,0.00017178,2]
[354261511,1740370270310,-690.76,0.00017178,2]
[354261512,1740370270320,-689.31,0.00017178,2]
[354261513,1740370270330,-595.43,0.00017178,2]
[354261514,1740370270340,-500.0,0.00017178,2]
[354261515,1740370270350,-500.0,0.00017178,2]
[354261516,1740370270359,-929.89,0.00017178,2]
[354261517,1740370270369,-500.0,0.00017178,2]
[354261518,1740370270378,-688.58,0.00017178,2]
[354261519,1740370270387,-500.0,0.00017178,2]
[354261520,1740370270397,-612.42559228,0.00017178,2]
[354261521,1740370270407,-518.85,0.00017178,2]
[354261522,1740370270416,-500.0,0.00017178,2]
[354261523,1740370270426,-783.77,0.00017178,2]
[354261524,1740370270436,-627.66,0.00017178,2]
[354261525,1740370270446,-500.0,0.00017178,2]
[354261526,1740370270455,-1124.15,0.00017178,2]
[354261527,1740370270466,-500.0,0.00017178,2]
[354261528,1740370270475,-500.0,0.00017178,2]
[354261529,1740370270485,-500.0,0.00017178,2]
[354261530,1740370270495,-500.0,0.00017178,2]
[354261531,1740370270504,-648.07,0.00017178,2]
[354261532,1740370270514,-742.83,0.00017178,2]
[354261533,1740370270523,-544.47,0.00017178,2]
[354261534,1740370270532,-538.11,0.00017178,2]
[354261535,1740370270542,-606.9,0.00017178,2]
[354261536,1740370270552,-761.19,0.00017178,2]
[354261537,1740370270561,-435.42210448,0.00017178,2]
[354261538,1740370270571,-942.27,0.00017178,2]
[354261539,1740370270580,-500.0,0.00017178,2]
[354261540,1740370270590,-1119.02,0.00017178,2]
[354261541,1740370270600,-719.34,0.00017178,2]
[354261542,1740370270609,-604.42,0.00017178,2]
[354261543,1740370270619,-500.0,0.00017178,2]
[354261544,1740370270630,-531.87,0.00017178,2]
[354261545,1740370270639,-985.74,0.00017178,2]
[354261546,1740370270649,-955.59,0.00017178,2]